[Event "*** SCC Grand Prix: Titled Tuesday Blitz"]
[Site "Chess.com"]
[Date "2020.07.14"]
[Round "3"]
[White "Malysch"]
[Black "AlanZhang"]
[Result "0-1"]
[WhiteElo "2454"]
[BlackElo "2231"]
[TimeControl "180+1"]
[EndTime "10:25:55 PDT"]
[Termination "AlanZhang won by resignation"]

1. d4 {[%clk 0:03:00.9]} 1... Nf6 {[%clk 0:02:59.7]} 2. c4 {[%clk 0:03:01.8]}
2... e6 {[%clk 0:02:59.9]} 3. g3 {[%clk 0:03:01.9]} 3... d5 {[%clk 0:03:00.1]}
4. Bg2 {[%clk 0:03:01.9]} 4... dxc4 {[%clk 0:02:59.8]} 5. Nf3 {[%clk 0:03:01.8]}
5... c6 {[%clk 0:02:59.5]} 6. Ne5 {[%clk 0:03:00.7]} 6... b5 {[%clk 0:02:59.5]}
7. a4 {[%clk 0:02:59.4]} 7... Nd5 {[%clk 0:02:59.2]} 8. O-O {[%clk 0:02:57.7]}
8... Bb7 {[%clk 0:02:58.2]} 9. Nc3 {[%clk 0:02:55.5]} 9... a6 {[%clk 0:02:47.5]}
10. e4 {[%clk 0:02:51.9]} 10... Nxc3 {[%clk 0:02:44.8]} 11. bxc3 {[%clk
0:02:52.8]} 11... Be7 {[%clk 0:02:44.7]} 12. Qg4 {[%clk 0:02:42.1]} 12... O-O
{[%clk 0:02:41.5]} 13. Bh6 {[%clk 0:02:11.1]} 13... Bf6 {[%clk 0:02:36.9]} 14.
Rfb1 {[%clk 0:02:10.4]} 14... Kh8 {[%clk 0:02:24.5]} 15. Be3 {[%clk 0:02:03.9]}
15... Bxe5 {[%clk 0:02:21.3]} 16. dxe5 {[%clk 0:02:03]} 16... Nd7 {[%clk
0:02:21.1]} 17. f4 {[%clk 0:01:59.5]} 17... Qe7 {[%clk 0:02:12.2]} 18. Rd1
{[%clk 0:01:41.7]} 18... Nc5 {[%clk 0:02:05.4]} 19. Rd5 {[%clk 0:01:13.1]} 19...
cxd5 {[%clk 0:02:04.6]} 0-1

[Event "*** SCC Grand Prix: Titled Tuesday Blitz"]
[Site "Chess.com"]
[Date "2020.07.14"]
[Round "3"]
[White "Zablotsky"]
[Black "Angel_Hranitel_37"]
[Result "1/2-1/2"]
[WhiteElo "2580"]
[BlackElo "2406"]
[TimeControl "180+1"]
[EndTime "10:26:02 PDT"]
[Termination "Game drawn by agreement"]

1. d4 {[%clk 0:02:59.1]} 1... Nf6 {[%clk 0:03:00]} 2. f3 {[%clk 0:03:00]} 2...
d5 {[%clk 0:02:59.2]} 3. g4 {[%clk 0:03:00.5]} 3... c5 {[%clk 0:02:13]} 4. g5
{[%clk 0:03:00.6]} 4... Nfd7 {[%clk 0:02:12.9]} 5. e4 {[%clk 0:03:00.1]} 5...
dxe4 {[%clk 0:02:07.5]} 6. fxe4 {[%clk 0:03:00.1]} 6... cxd4 {[%clk 0:02:07.9]}
7. Qxd4 {[%clk 0:02:59.8]} 7... Nc6 {[%clk 0:02:08.3]} 8. Qd3 {[%clk 0:02:58.7]}
8... Nc5 {[%clk 0:02:03.8]} 9. Qxd8+ {[%clk 0:02:58.4]} 9... Kxd8 {[%clk
0:02:02]} 10. Bg2 {[%clk 0:02:58.4]} 10... e5 {[%clk 0:01:35.7]} 11. Ne2 {[%clk
0:02:58]} 11... Be6 {[%clk 0:01:25.4]} 12. c3 {[%clk 0:02:57.3]} 12... Nd3+
{[%clk 0:01:21.5]} 13. Kd2 {[%clk 0:02:56]} 13... Nxc1 {[%clk 0:01:21.8]} 14.
Kxc1 {[%clk 0:02:55.6]} 14... Be7 {[%clk 0:01:22.3]} 15. Kc2 {[%clk 0:02:55.5]}
15... Bxg5 {[%clk 0:01:21.6]} 16. h4 {[%clk 0:02:55.3]} 16... Bh6 {[%clk
0:01:21.4]} 17. Bh3 {[%clk 0:02:55.4]} 17... Bxh3 {[%clk 0:01:18.5]} 18. Rxh3
{[%clk 0:02:55.5]} 18... Rc8 {[%clk 0:01:19.3]} 19. Nd2 {[%clk 0:02:55]} 19...
Ke7 {[%clk 0:01:12.1]} 20. Nc4 {[%clk 0:02:52.4]} 20... b5 {[%clk 0:01:10.1]}
21. Ne3 {[%clk 0:02:52.2]} 21... Bxe3 {[%clk 0:01:06]} 22. Rxe3 {[%clk
0:02:51.5]} 22... Nd4+ {[%clk 0:00:53.2]} 23. Nxd4 {[%clk 0:02:48]} 23... exd4
{[%clk 0:00:54.1]} 24. Rg3 {[%clk 0:02:47.7]} 24... dxc3 {[%clk 0:00:53.5]} 25.
Rxg7 {[%clk 0:02:47.3]} 25... cxb2+ {[%clk 0:00:51.5]} 26. Kxb2 {[%clk
0:02:46.9]} 26... Rc4 {[%clk 0:00:34]} 27. Rf1 {[%clk 0:02:42]} 27... Rf8 {[%clk
0:00:34.5]} 28. Rxh7 {[%clk 0:02:41.5]} 28... Rxe4 {[%clk 0:00:34.3]} 29. Rf2
{[%clk 0:02:40.9]} 29... Re6 {[%clk 0:00:26.5]} 30. h5 {[%clk 0:02:40.4]} 30...
Rf6 {[%clk 0:00:26.7]} 31. Re2+ {[%clk 0:02:40]} 31... Re6 {[%clk 0:00:23.4]}
32. Rh2 {[%clk 0:02:38.4]} 1/2-1/2

[Event "*** SCC Grand Prix: Titled Tuesday Blitz"]
[Site "Chess.com"]
[Date "2020.07.14"]
[Round "3"]
[White "fish7728"]
[Black "Falia-p"]
[Result "0-1"]
[WhiteElo "2171"]
[BlackElo "2411"]
[TimeControl "180+1"]
[EndTime "10:26:09 PDT"]
[Termination "Falia-p won by resignation"]

1. d4 {[%clk 0:03:00.9]} 1... Nf6 {[%clk 0:02:58.2]} 2. c4 {[%clk 0:03:01]} 2...
e6 {[%clk 0:02:57.6]} 3. Nc3 {[%clk 0:03:01.1]} 3... Bb4 {[%clk 0:02:56.9]} 4.
f3 {[%clk 0:03:00]} 4... O-O {[%clk 0:02:54.2]} 5. a3 {[%clk 0:02:59.7]} 5...
Be7 {[%clk 0:02:54.1]} 6. e4 {[%clk 0:02:59.1]} 6... d5 {[%clk 0:02:55]} 7. e5
{[%clk 0:02:49.5]} 7... Ne8 {[%clk 0:02:41.9]} 8. f4 {[%clk 0:02:44.2]} 8... f5
{[%clk 0:02:36.8]} 9. Nf3 {[%clk 0:02:43.5]} 9... b6 {[%clk 0:02:27.3]} 10. cxd5
{[%clk 0:02:37.4]} 10... exd5 {[%clk 0:02:27]} 11. Bd3 {[%clk 0:02:36.1]} 11...
Be6 {[%clk 0:02:24.5]} 12. O-O {[%clk 0:02:34.8]} 12... c5 {[%clk 0:02:22.4]}
13. Be3 {[%clk 0:02:24.8]} 13... Nc6 {[%clk 0:02:17.9]} 14. Rb1 {[%clk
0:02:17.7]} 14... g6 {[%clk 0:02:16.5]} 15. dxc5 {[%clk 0:02:02.5]} 15... bxc5
{[%clk 0:02:13.2]} 16. Bb5 {[%clk 0:01:57.5]} 16... Rc8 {[%clk 0:02:06.2]} 17.
Bxc6 {[%clk 0:01:56.8]} 17... Rxc6 {[%clk 0:02:04.1]} 18. Ne2 {[%clk 0:01:52.1]}
18... d4 {[%clk 0:02:01.1]} 19. Bd2 {[%clk 0:01:50.6]} 19... Nc7 {[%clk
0:01:29.8]} 20. Ba5 {[%clk 0:01:49.8]} 20... Qd5 {[%clk 0:01:22.9]} 21. Bxc7
{[%clk 0:01:48.8]} 21... Rxc7 {[%clk 0:01:22.5]} 22. Qa4 {[%clk 0:01:38.3]}
22... Qc4 {[%clk 0:01:17.7]} 23. Qxc4 {[%clk 0:01:33.2]} 23... Bxc4 {[%clk
0:01:16.7]} 24. Rfe1 {[%clk 0:01:33.8]} 24... Rb8 {[%clk 0:01:11.9]} 25. Nd2
{[%clk 0:01:32.3]} 25... Bd3 {[%clk 0:01:10.2]} 26. Rbc1 {[%clk 0:01:27.8]}
26... Rxb2 {[%clk 0:01:09.5]} 27. Red1 {[%clk 0:01:27.3]} 27... Bxe2 {[%clk
0:01:08.7]} 0-1

[Event "*** SCC Grand Prix: Titled Tuesday Blitz"]
[Site "Chess.com"]
[Date "2020.07.14"]
[Round "3"]
[White "Ermito2020"]
[Black "Godzillator"]
[Result "1-0"]
[WhiteElo "2511"]
[BlackElo "2313"]
[TimeControl "180+1"]
[EndTime "10:26:11 PDT"]
[Termination "Ermito2020 won by resignation"]

1. e4 {[%clk 0:03:00.9]} 1... c6 {[%clk 0:03:00.1]} 2. d4 {[%clk 0:03:00.3]}
2... d5 {[%clk 0:03:01]} 3. e5 {[%clk 0:03:00.6]} 3... Bf5 {[%clk 0:03:00.6]} 4.
Nf3 {[%clk 0:03:01]} 4... e6 {[%clk 0:03:00.7]} 5. Be2 {[%clk 0:03:01.5]} 5...
c5 {[%clk 0:03:00.8]} 6. Be3 {[%clk 0:03:01.4]} 6... cxd4 {[%clk 0:03:01.1]} 7.
Nxd4 {[%clk 0:03:01.1]} 7... Ne7 {[%clk 0:03:01.4]} 8. O-O {[%clk 0:03:00.8]}
8... Nbc6 {[%clk 0:03:01.4]} 9. Bb5 {[%clk 0:03:01.4]} 9... a6 {[%clk 0:02:59]}
10. Bxc6+ {[%clk 0:02:59.9]} 10... bxc6 {[%clk 0:02:57.1]} 11. c4 {[%clk
0:02:56.4]} 11... Bg6 {[%clk 0:02:51.2]} 12. Nc3 {[%clk 0:02:34.9]} 12... c5
{[%clk 0:02:36.4]} 13. Qa4+ {[%clk 0:02:33.2]} 13... Qd7 {[%clk 0:02:36]} 14.
Qxd7+ {[%clk 0:02:32.1]} 14... Kxd7 {[%clk 0:02:35.7]} 15. Nb3 {[%clk
0:02:30.6]} 15... Nc6 {[%clk 0:02:22]} 16. cxd5 {[%clk 0:02:26.4]} 16... Nxe5
{[%clk 0:02:13.8]} 17. Bxc5 {[%clk 0:02:17.6]} 17... exd5 {[%clk 0:02:05.6]} 18.
Bxf8 {[%clk 0:02:06.1]} 18... Rhxf8 {[%clk 0:02:02.7]} 19. Nxd5 {[%clk
0:02:06.7]} 19... Kd6 {[%clk 0:01:57.8]} 20. Rad1 {[%clk 0:01:53.3]} 20... Rad8
{[%clk 0:01:51.1]} 21. f4 {[%clk 0:01:44]} 21... Nd3 {[%clk 0:01:43]} 22. f5
{[%clk 0:01:41.8]} 22... Nxb2 {[%clk 0:01:29.7]} 23. Rd2 {[%clk 0:01:28]} 23...
Nc4 {[%clk 0:01:28.9]} 24. Rd4 {[%clk 0:01:28]} 24... Bh5 {[%clk 0:01:15.1]} 25.
Nf4+ {[%clk 0:01:23.7]} 25... Ke5 {[%clk 0:01:11.4]} 26. Rxc4 {[%clk 0:01:15.9]}
1-0

[Event "*** SCC Grand Prix: Titled Tuesday Blitz"]
[Site "Chess.com"]
[Date "2020.07.14"]
[Round "3"]
[White "DivyaDeshmukh23"]
[Black "AsselLesbekova"]
[Result "0-1"]
[WhiteElo "2482"]
[BlackElo "2331"]
[TimeControl "180+1"]
[EndTime "10:26:11 PDT"]
[Termination "AsselLesbekova won on time"]

1. e4 {[%clk 0:02:18.9]} 1... c5 {[%clk 0:02:57.6]} 2. Nf3 {[%clk 0:02:17.9]}
2... Nc6 {[%clk 0:02:57.8]} 3. d4 {[%clk 0:02:18.8]} 3... cxd4 {[%clk
0:02:57.9]} 4. Nxd4 {[%clk 0:02:08.6]} 4... e5 {[%clk 0:02:57.6]} 5. Nb5 {[%clk
0:02:07.6]} 5... d6 {[%clk 0:02:57.9]} 6. N1c3 {[%clk 0:02:04]} 6... a6 {[%clk
0:02:58]} 7. Na3 {[%clk 0:02:02.8]} 7... b5 {[%clk 0:02:58.4]} 8. Nd5 {[%clk
0:02:00.1]} 8... Nce7 {[%clk 0:02:58.3]} 9. Be3 {[%clk 0:01:57.1]} 9... Nxd5
{[%clk 0:02:57.3]} 10. exd5 {[%clk 0:01:47.6]} 10... f5 {[%clk 0:02:56.6]} 11.
f4 {[%clk 0:01:40]} 11... e4 {[%clk 0:02:53.3]} 12. c3 {[%clk 0:01:33.5]} 12...
Nf6 {[%clk 0:02:51.8]} 13. Nc2 {[%clk 0:01:30.9]} 13... Be7 {[%clk 0:02:50.8]}
14. Be2 {[%clk 0:00:20.9]} 14... O-O {[%clk 0:02:49.3]} 15. O-O {[%clk
0:00:18.4]} 15... Bb7 {[%clk 0:02:45.9]} 16. Nd4 {[%clk 0:00:17.5]} 16... Qd7
{[%clk 0:02:41.2]} 17. c4 {[%clk 0:00:15]} 17... bxc4 {[%clk 0:02:38.1]} 18.
Bxc4 {[%clk 0:00:15.9]} 18... Kh8 {[%clk 0:02:38.3]} 19. Qb3 {[%clk 0:00:14.1]}
19... Rab8 {[%clk 0:02:35.5]} 20. Qd1 {[%clk 0:00:04.4]} 20... Nxd5 {[%clk
0:02:28.6]} 0-1

[Event "*** SCC Grand Prix: Titled Tuesday Blitz"]
[Site "Chess.com"]
[Date "2020.07.14"]
[Round "3"]
[White "MacDaddyMac"]
[Black "themind1hunter"]
[Result "0-1"]
[WhiteElo "2304"]
[BlackElo "2502"]
[TimeControl "180+1"]
[EndTime "10:26:26 PDT"]
[Termination "themind1hunter won by resignation"]

1. e4 {[%clk 0:03:00.9]} 1... c5 {[%clk 0:02:59.7]} 2. Nc3 {[%clk 0:03:00.9]}
2... d6 {[%clk 0:02:59.8]} 3. f4 {[%clk 0:03:01.5]} 3... g6 {[%clk 0:02:59.3]}
4. Nf3 {[%clk 0:03:02]} 4... Bg7 {[%clk 0:02:59.9]} 5. Bb5+ {[%clk 0:03:01.7]}
5... Bd7 {[%clk 0:02:59.4]} 6. d3 {[%clk 0:03:01.9]} 6... Bxc3+ {[%clk
0:02:57.4]} 7. bxc3 {[%clk 0:03:02.3]} 7... Bxb5 {[%clk 0:02:57.9]} 8. c4 {[%clk
0:03:02.6]} 8... Bd7 {[%clk 0:02:57.6]} 9. Bb2 {[%clk 0:03:03.5]} 9... Nf6
{[%clk 0:02:57.9]} 10. e5 {[%clk 0:03:02.7]} 10... Nh5 {[%clk 0:02:42.3]} 11. e6
{[%clk 0:02:59.7]} 11... Bxe6 {[%clk 0:02:41.4]} 12. Bxh8 {[%clk 0:02:59.3]}
12... f6 {[%clk 0:02:42.3]} 13. O-O {[%clk 0:02:35.4]} 13... Kd7 {[%clk
0:02:33.2]} 14. f5 {[%clk 0:02:31.3]} 14... Bf7 {[%clk 0:02:12.5]} 15. fxg6
{[%clk 0:02:24.9]} 15... hxg6 {[%clk 0:02:09.7]} 16. g4 {[%clk 0:01:49.2]} 16...
Nf4 {[%clk 0:01:41.8]} 17. Bg7 {[%clk 0:01:45.7]} 17... g5 {[%clk 0:01:28.4]}
18. Rb1 {[%clk 0:01:31.6]} 18... Kc7 {[%clk 0:01:17.2]} 19. Qe1 {[%clk
0:01:20.2]} 19... Nc6 {[%clk 0:01:10]} 20. Qc3 {[%clk 0:01:00.9]} 20... Ne2+
{[%clk 0:00:56.1]} 0-1

[Event "*** SCC Grand Prix: Titled Tuesday Blitz"]
[Site "Chess.com"]
[Date "2020.07.14"]
[Round "3"]
[White "Rytenko_V"]
[Black "Mbneu"]
[Result "1-0"]
[WhiteElo "2475"]
[BlackElo "2215"]
[TimeControl "180+1"]
[EndTime "10:26:30 PDT"]
[Termination "Rytenko_V won by resignation"]

1. e4 {[%clk 0:03:00.9]} 1... c5 {[%clk 0:02:54]} 2. Nf3 {[%clk 0:03:00.3]} 2...
Nf6 {[%clk 0:02:53.8]} 3. e5 {[%clk 0:03:00.1]} 3... Nd5 {[%clk 0:02:53.3]} 4.
d4 {[%clk 0:03:00.7]} 4... cxd4 {[%clk 0:02:52.4]} 5. Qxd4 {[%clk 0:03:01.6]}
5... e6 {[%clk 0:02:50.9]} 6. c4 {[%clk 0:03:01.1]} 6... Nc6 {[%clk 0:02:49.7]}
7. Qe4 {[%clk 0:03:01.4]} 7... f5 {[%clk 0:02:48.4]} 8. exf6 {[%clk 0:03:00.3]}
8... Nxf6 {[%clk 0:02:47.3]} 9. Qh4 {[%clk 0:03:00.3]} 9... Be7 {[%clk
0:02:44.7]} 10. Nc3 {[%clk 0:03:00.4]} 10... O-O {[%clk 0:02:43.4]} 11. Bd3
{[%clk 0:02:57.6]} 11... d5 {[%clk 0:02:28.4]} 12. Bg5 {[%clk 0:02:49.9]} 12...
g6 {[%clk 0:02:12.6]} 13. O-O {[%clk 0:02:43.8]} 13... d4 {[%clk 0:02:03.1]} 14.
Ne4 {[%clk 0:02:42.4]} 14... Nxe4 {[%clk 0:02:02.2]} 15. Bxe4 {[%clk 0:02:43.3]}
15... Bxg5 {[%clk 0:01:51]} 16. Nxg5 {[%clk 0:02:42.3]} 16... Qe7 {[%clk
0:01:38.2]} 17. Rfe1 {[%clk 0:02:35.9]} 17... Qg7 {[%clk 0:01:13.5]} 18. Bxc6
{[%clk 0:02:33.8]} 18... bxc6 {[%clk 0:01:12.4]} 19. Nxe6 {[%clk 0:02:32.6]}
19... Bxe6 {[%clk 0:01:10]} 20. Rxe6 {[%clk 0:02:33.5]} 20... d3 {[%clk
0:00:57.9]} 21. Re7 {[%clk 0:02:18.5]} 21... Rf7 {[%clk 0:00:56.7]} 22. Rxf7
{[%clk 0:02:18.8]} 22... Qxf7 {[%clk 0:00:55.6]} 23. Qd4 {[%clk 0:02:17.2]}
23... Rf8 {[%clk 0:00:41]} 24. f3 {[%clk 0:02:08.1]} 24... Qf6 {[%clk
0:00:17.8]} 25. Qxf6 {[%clk 0:02:05.9]} 25... Rxf6 {[%clk 0:00:14.3]} 26. Rd1
{[%clk 0:02:06.4]} 26... Rd6 {[%clk 0:00:12.6]} 27. Kf2 {[%clk 0:02:04.7]} 1-0

[Event "*** SCC Grand Prix: Titled Tuesday Blitz"]
[Site "Chess.com"]
[Date "2020.07.14"]
[Round "3"]
[White "Quiet_Desperation"]
[Black "DrVitman"]
[Result "1-0"]
[WhiteElo "2234"]
[BlackElo "2501"]
[TimeControl "180+1"]
[EndTime "10:26:32 PDT"]
[Termination "Quiet_Desperation won by resignation"]

1. Nf3 {[%clk 0:03:00.9]} 1... c5 {[%clk 0:02:52]} 2. b3 {[%clk 0:03:00.9]} 2...
Nc6 {[%clk 0:02:50.7]} 3. Bb2 {[%clk 0:03:01.2]} 3... d6 {[%clk 0:02:51.1]} 4.
e4 {[%clk 0:02:59.8]} 4... e5 {[%clk 0:02:50.7]} 5. Bc4 {[%clk 0:02:59.2]} 5...
Be6 {[%clk 0:02:38.6]} 6. Qe2 {[%clk 0:02:56]} 6... Nge7 {[%clk 0:02:33.9]} 7.
Bxe6 {[%clk 0:02:54.9]} 7... fxe6 {[%clk 0:02:33.2]} 8. Ng5 {[%clk 0:02:55.2]}
8... Qd7 {[%clk 0:02:31.6]} 9. Qf3 {[%clk 0:02:52.9]} 9... Ng6 {[%clk
0:02:29.9]} 10. g3 {[%clk 0:02:47.5]} 10... O-O-O {[%clk 0:02:28.3]} 11. Nf7
{[%clk 0:02:44.7]} 11... Nd4 {[%clk 0:02:09.1]} 12. Bxd4 {[%clk 0:02:41.6]}
12... exd4 {[%clk 0:02:08.9]} 13. Nxh8 {[%clk 0:02:38.6]} 13... Nxh8 {[%clk
0:02:08.6]} 14. O-O {[%clk 0:02:38.7]} 14... g6 {[%clk 0:02:08.2]} 15. d3 {[%clk
0:02:30.4]} 15... Bg7 {[%clk 0:02:07.6]} 16. Nd2 {[%clk 0:02:29.7]} 16... Nf7
{[%clk 0:02:06.8]} 17. Qg2 {[%clk 0:02:27.8]} 17... g5 {[%clk 0:02:02.3]} 18. f4
{[%clk 0:02:04.6]} 18... gxf4 {[%clk 0:02:00.8]} 19. gxf4 {[%clk 0:02:03.8]}
19... Bh6 {[%clk 0:01:58.7]} 20. Qh3 {[%clk 0:01:59]} 20... Qe7 {[%clk
0:01:54.9]} 21. Kh1 {[%clk 0:01:57.8]} 21... Kb8 {[%clk 0:01:44.4]} 22. a4
{[%clk 0:01:55.1]} 22... e5 {[%clk 0:01:43.7]} 23. Nc4 {[%clk 0:01:45.9]} 23...
exf4 {[%clk 0:01:38.1]} 24. Qf5 {[%clk 0:01:37.8]} 24... Bg5 {[%clk 0:01:26.6]}
25. a5 {[%clk 0:01:34.5]} 25... a6 {[%clk 0:01:20.9]} 26. Nb6 {[%clk 0:01:33.2]}
26... Ne5 {[%clk 0:01:13.3]} 27. Nd5 {[%clk 0:01:26]} 27... Qd7 {[%clk
0:01:07.2]} 28. Qxg5 {[%clk 0:01:24.6]} 1-0

[Event "*** SCC Grand Prix: Titled Tuesday Blitz"]
[Site "Chess.com"]
[Date "2020.07.14"]
[Round "3"]
[White "Evgeny81"]
[Black "Agibileg"]
[Result "1-0"]
[WhiteElo "2749"]
[BlackElo "2431"]
[TimeControl "180+1"]
[EndTime "10:26:43 PDT"]
[Termination "Evgeny81 won by resignation"]

1. e4 {[%clk 0:03:00.9]} 1... e5 {[%clk 0:02:57.4]} 2. Nf3 {[%clk 0:03:00.6]}
2... d6 {[%clk 0:02:57.6]} 3. d4 {[%clk 0:03:00.3]} 3... Nd7 {[%clk 0:02:52.9]}
4. Bc4 {[%clk 0:02:57.7]} 4... Be7 {[%clk 0:02:52.7]} 5. dxe5 {[%clk 0:02:55.1]}
5... Nxe5 {[%clk 0:02:45.9]} 6. Nxe5 {[%clk 0:02:54.9]} 6... dxe5 {[%clk
0:02:45.8]} 7. Qh5 {[%clk 0:02:55.2]} 7... g6 {[%clk 0:02:18.3]} 8. Qxe5 {[%clk
0:02:54.9]} 8... Nf6 {[%clk 0:02:18.8]} 9. Bh6 {[%clk 0:02:50.1]} 9... Rg8
{[%clk 0:02:09.4]} 10. Bg5 {[%clk 0:02:43]} 10... Ng4 {[%clk 0:02:05.5]} 11.
Qxe7+ {[%clk 0:02:35.5]} 11... Qxe7 {[%clk 0:02:05.2]} 12. Bxe7 {[%clk
0:02:36.4]} 12... Kxe7 {[%clk 0:02:05.6]} 13. Nc3 {[%clk 0:02:35.9]} 13... c6
{[%clk 0:02:03.2]} 14. Be2 {[%clk 0:02:24.7]} 14... Nf6 {[%clk 0:01:57.9]} 15.
O-O-O {[%clk 0:02:23.6]} 15... Be6 {[%clk 0:01:57.2]} 16. f4 {[%clk 0:02:22.4]}
16... b5 {[%clk 0:01:55.8]} 17. Bf3 {[%clk 0:02:18.3]} 17... Rgc8 {[%clk
0:01:49.9]} 18. e5 {[%clk 0:02:16.3]} 18... Ne8 {[%clk 0:01:44.7]} 19. Rhe1
{[%clk 0:02:03.9]} 19... Rab8 {[%clk 0:01:42]} 20. Ne4 {[%clk 0:01:57.4]} 20...
c5 {[%clk 0:01:41.6]} 21. Nd6 {[%clk 0:01:54.6]} 21... Nxd6 {[%clk 0:01:40.1]}
22. Rxd6 {[%clk 0:01:51.4]} 22... Rb6 {[%clk 0:01:36.3]} 23. Red1 {[%clk
0:01:46]} 23... Rxd6 {[%clk 0:01:30.5]} 24. Rxd6 {[%clk 0:01:46.9]} 24... a5
{[%clk 0:01:26.2]} 25. Rb6 {[%clk 0:01:37.5]} 25... b4 {[%clk 0:01:17.1]} 26.
Ra6 {[%clk 0:01:36.1]} 26... c4 {[%clk 0:00:58.8]} 27. Rxa5 {[%clk 0:01:33.4]}
27... b3 {[%clk 0:00:59]} 28. Ra7+ {[%clk 0:01:29]} 28... Kf8 {[%clk 0:00:58.3]}
29. axb3 {[%clk 0:01:27.1]} 29... cxb3 {[%clk 0:00:58.1]} 30. Ra8 {[%clk
0:01:27]} 30... Rxa8 {[%clk 0:00:53]} 31. Bxa8 {[%clk 0:01:27.9]} 31... Ke8
{[%clk 0:00:50.5]} 1-0

[Event "*** SCC Grand Prix: Titled Tuesday Blitz"]
[Site "Chess.com"]
[Date "2020.07.14"]
[Round "3"]
[White "PauloCesarCosta_sad"]
[Black "googlegoom"]
[Result "1-0"]
[WhiteElo "2220"]
[BlackElo "2451"]
[TimeControl "180+1"]
[EndTime "10:26:51 PDT"]
[Termination "PauloCesarCosta_sad won by checkmate"]

1. Nf3 {[%clk 0:03:00.9]} 1... d5 {[%clk 0:02:58.4]} 2. d4 {[%clk 0:03:00.4]}
2... Nf6 {[%clk 0:02:58.6]} 3. c4 {[%clk 0:03:00.9]} 3... c6 {[%clk 0:02:58.6]}
4. Nc3 {[%clk 0:03:00.3]} 4... e6 {[%clk 0:02:59]} 5. e3 {[%clk 0:02:59.8]} 5...
Be7 {[%clk 0:02:59.6]} 6. Bd3 {[%clk 0:02:59.6]} 6... dxc4 {[%clk 0:02:59]} 7.
Bxc4 {[%clk 0:02:59.7]} 7... Nbd7 {[%clk 0:02:57.1]} 8. O-O {[%clk 0:02:59]}
8... b5 {[%clk 0:02:56.4]} 9. Bd3 {[%clk 0:02:58.9]} 9... a6 {[%clk 0:02:57]}
10. e4 {[%clk 0:02:44.3]} 10... c5 {[%clk 0:02:56.4]} 11. e5 {[%clk 0:02:24.7]}
11... Ng4 {[%clk 0:02:52.9]} 12. Ne4 {[%clk 0:02:09.9]} 12... cxd4 {[%clk
0:02:43]} 13. Nd6+ {[%clk 0:01:58.2]} 13... Bxd6 {[%clk 0:02:32.9]} 14. exd6
{[%clk 0:01:59.1]} 14... Qb6 {[%clk 0:02:33.4]} 15. Be4 {[%clk 0:01:52.5]} 15...
Rb8 {[%clk 0:02:16.9]} 16. Nxd4 {[%clk 0:01:52.6]} 16... Qxd6 {[%clk 0:02:11.9]}
17. Qxg4 {[%clk 0:01:45.2]} 17... Qxd4 {[%clk 0:02:08.6]} 18. Rd1 {[%clk
0:01:41.4]} 18... Qe5 {[%clk 0:01:47.2]} 19. Bc6 {[%clk 0:01:41]} 19... h5
{[%clk 0:01:34.8]} 20. Qb4 {[%clk 0:01:32.7]} 20... Rb6 {[%clk 0:01:22.7]} 21.
Bf4 {[%clk 0:01:25.7]} 21... Qf5 {[%clk 0:01:17.1]} 22. Bxd7+ {[%clk 0:01:02]}
22... Bxd7 {[%clk 0:01:16.2]} 23. Rxd7 {[%clk 0:01:02.9]} 23... Kxd7 {[%clk
0:01:15]} 24. Rd1+ {[%clk 0:01:03]} 24... Ke8 {[%clk 0:01:13.2]} 25. Bc7 {[%clk
0:01:01.5]} 25... Rc6 {[%clk 0:01:05.6]} 26. Rd8# {[%clk 0:00:41.3]} 1-0

[Event "*** SCC Grand Prix: Titled Tuesday Blitz"]
[Site "Chess.com"]
[Date "2020.07.14"]
[Round "3"]
[White "TheNextLevelFan"]
[Black "CarlosAlbornoz"]
[Result "0-1"]
[WhiteElo "2536"]
[BlackElo "2811"]
[TimeControl "180+1"]
[EndTime "10:27:06 PDT"]
[Termination "CarlosAlbornoz won by resignation"]

1. d4 {[%clk 0:03:00.9]} 1... Nf6 {[%clk 0:02:59.7]} 2. c4 {[%clk 0:03:00.2]}
2... g6 {[%clk 0:02:59.8]} 3. Nc3 {[%clk 0:02:56.7]} 3... Bg7 {[%clk 0:03:00]}
4. e4 {[%clk 0:02:53.9]} 4... d6 {[%clk 0:03:00]} 5. Nf3 {[%clk 0:02:53.8]} 5...
Bg4 {[%clk 0:02:59.7]} 6. Be2 {[%clk 0:02:53.3]} 6... O-O {[%clk 0:02:59.5]} 7.
O-O {[%clk 0:02:52.8]} 7... Nfd7 {[%clk 0:02:59.4]} 8. Be3 {[%clk 0:02:51.5]}
8... Nc6 {[%clk 0:02:59.3]} 9. d5 {[%clk 0:02:37.5]} 9... Bxf3 {[%clk
0:02:58.9]} 10. Bxf3 {[%clk 0:02:36.7]} 10... Na5 {[%clk 0:02:59]} 11. Be2
{[%clk 0:02:28.3]} 11... Bxc3 {[%clk 0:02:59.1]} 12. bxc3 {[%clk 0:02:28]} 12...
e5 {[%clk 0:03:00]} 13. Rb1 {[%clk 0:02:20.7]} 13... b6 {[%clk 0:02:59.3]} 14.
f4 {[%clk 0:02:16.4]} 14... exf4 {[%clk 0:02:57.9]} 15. Rxf4 {[%clk 0:02:14.2]}
15... Qe7 {[%clk 0:02:56.8]} 16. Bd4 {[%clk 0:02:06.7]} 16... Ne5 {[%clk
0:02:53.1]} 17. Qf1 {[%clk 0:02:01.4]} 17... Rae8 {[%clk 0:02:49.5]} 18. Kh1
{[%clk 0:01:49.2]} 18... Nb7 {[%clk 0:02:48.5]} 19. Qf2 {[%clk 0:01:45.3]} 19...
Nc5 {[%clk 0:02:47]} 20. Rf1 {[%clk 0:01:42.2]} 20... Ncd3 {[%clk 0:02:42.2]}
21. Qg3 {[%clk 0:01:33.3]} 21... Nxf4 {[%clk 0:02:41.1]} 22. Rxf4 {[%clk
0:01:32.7]} 22... f6 {[%clk 0:02:38.4]} 23. h4 {[%clk 0:01:30.8]} 23... Rf7
{[%clk 0:02:37.2]} 24. Kg1 {[%clk 0:01:28.2]} 24... Ref8 {[%clk 0:02:35.5]} 25.
h5 {[%clk 0:01:25.9]} 25... Rg7 {[%clk 0:02:29.5]} 26. h6 {[%clk 0:01:17.1]}
26... Rgf7 {[%clk 0:02:29.2]} 27. Bg4 {[%clk 0:00:48.2]} 27... Nxg4 {[%clk
0:02:03.8]} 28. Rxg4 {[%clk 0:00:49.1]} 28... Re8 {[%clk 0:01:55.4]} 29. Qf4
{[%clk 0:00:41.8]} 29... Kf8 {[%clk 0:01:46.6]} 30. Qf3 {[%clk 0:00:34.5]} 30...
f5 {[%clk 0:01:42.9]} 31. Bg7+ {[%clk 0:00:21.4]} 31... Kg8 {[%clk 0:01:41.9]}
32. exf5 {[%clk 0:00:21.1]} 32... Rxf5 {[%clk 0:01:32.7]} 0-1